bitfinex/quotes_ETHUSD_20241225
["timestamp","ask_amount","ask_price","bid_price","bid_amount"]
[1735131447427,1.20540315,3479.3,3479.2,2.87422]
[1735131447590,1.20540315,3479.3,3479.2,3.244572]
[1735131448126,1.20540315,3479.3,3479.2,7.073872]
[1735131448289,1.20540315,3480.0,3479.2,7.073872]
[1735131448489,1.20540315,3480.0,3479.3,3.0]
[1735131448684,1.20540315,3480.0,3479.9,2.87364]
[1735131448902,1.20540315,3480.0,3479.9,3.243934]
[1735131449855,1.20540315,3480.5,3480.0,2.87349]
[1735131450152,1.20540315,3480.5,3480.1,2.87343]
[1735131450439,1.20540315,3480.5,3480.2,0.3243724]
[1735131450632,1.20540315,3480.5,3480.3,2.8733]
[1735131451203,2.02380315,3480.9,3480.3,2.8733]
[1735131452218,0.8184,3480.9,3480.3,2.8733]
[1735131454234,0.8184,3480.9,3480.2,0.3243724]
[1735131455811,0.8184,3480.9,3480.3,0.31978424]
[1735131459637,0.8184,3480.9,3480.2,3.1977324]
[1735131465272,0.8184,3480.9,3480.3,2.87329]
[1735131466876,1.20540315,3481.1,3480.7,2.87297]
[1735131467059,1.20540315,3481.1,3480.8,2.87289]
[1735131467442,1.20540315,3481.1,3481.0,2.87273]
[1735131467650,1.20540315,3481.1,3481.0,3.238403]
[1735131467836,1.20540315,3481.1,3481.0,0.365673]
[1735131468177,1.20540315,3481.1,3480.6,2.87305]
[1735131468545,1.20540315,3481.1,3480.4,0.784]
[1735131468742,1.20540315,3481.1,3480.8,2.8729]
[1735131468963,0.8164,3481.6,3480.8,2.8729]
[1735131469262,0.8164,3481.6,3480.9,0.28729]
[1735131469858,0.8164,3481.6,3480.8,2.8729]
[1735131470069,0.8164,3481.6,3480.8,2.87283]
[1735131470371,0.8164,3481.6,3480.4,0.784]
[1735131470570,1.20540315,3481.8,3481.0,0.8088]
[1735131470780,1.20540315,3481.8,3481.2,2.87253]
[1735131470982,1.20540315,3481.8,3481.2,3.52794]
[1735131471282,1.98280315,3481.9,3481.2,3.52794]
[1735131472377,0.7774,3481.9,3481.2,3.52794]
[1735131472581,0.02692473,3481.8,3481.2,3.52794]
[1735131473181,0.02692473,3481.8,3481.2,0.65541]
[1735131473380,0.06282744,3481.8,3480.8,2.87287]
[1735131473586,0.7774,3481.4,3480.5,3.0]
[1735131473903,0.81330818,3481.4,3480.5,3.0]
[1735131474114,0.02575794,3481.3,3480.5,3.0]
[1735131474522,0.02575794,3481.3,3480.4,2.8732]
[1735131474686,0.02575794,3481.3,3480.5,0.49529738]
[1735131475204,0.03590818,3481.2,3480.3,0.56794057]
[1735131475373,0.88596235,3481.2,3480.3,0.56794057]
[1735131475574,2.87267,3481.1,3480.3,0.56794057]
[1735131475762,2.89842183,3481.1,3480.3,0.56794057]
[1735131475962,2.89842183,3481.1,3479.9,0.370294]
[1735131475963,0.8243,3480.9,3479.9,0.370294]
[1735131476163,3.69713,3480.9,3479.9,0.370294]
[1735131476463,0.02574842,3480.8,3479.9,0.370294]
[1735131477426,0.8243,3480.9,3480.4,2.87316]
[1735131477579,0.02531872,3480.7,3480.5,0.287316]
[1735131477785,0.8243,3480.9,3480.5,0.287316]
[1735131478007,0.02522183,3480.6,3480.5,3.160436]
[1735131478323,0.8243,3480.9,3480.5,3.160436]
[1735131478703,0.02522954,3480.8,3480.0,3.0]
[1735131478916,0.02522954,3480.8,3480.0,2.87348]
[1735131479122,0.8243,3480.9,3480.0,2.87348]
[1735131479280,0.02521675,3480.7,3480.0,2.87348]
[1735131479481,0.02522558,3480.8,3480.0,2.87348]
[1735131479774,0.02522558,3480.8,3480.2,2.87339]
[1735131479977,0.8243,3480.9,3480.2,3.0]
[1735131480229,1.77611185,3481.8,3480.3,0.7516]
[1735131480230,0.8243,3481.5,3480.3,0.7516]
[1735131480375,0.02522988,3480.8,3480.7,2.87298]
[1735131480579,1.20540315,3481.4,3480.8,2.87283]
[1735131480801,1.20540315,3481.4,3480.9,2.87274]
[1735131481021,1.20540315,3481.4,3480.8,0.7516]
[1735131481202,1.20540315,3481.4,3481.2,2.87255]
[1735131481997,0.8243,3481.9,3481.2,2.87255]
[1735131482658,0.8243,3481.9,3481.3,2.87246]
[1735131483079,0.02578422,3481.8,3481.4,2.87234]
[1735131483282,0.02578422,3481.8,3481.2,0.287255]
[1735131483706,0.8243,3481.9,3481.2,0.287255]
[1735131483925,0.02577732,3481.8,3481.4,2.87233]
[1735131484100,0.02577732,3481.8,3481.5,3.1882385]
[1735131484502,0.02577415,3481.7,3481.5,0.3159585]
[1735131484704,0.7558,3482.2,3481.6,2.87221]
[1735131485035,0.02577779,3482.1,3481.6,2.87221]
[1735131489515,0.02577779,3482.1,3481.4,0.7803]
[1735131489716,0.02577779,3482.1,3481.2,3.0]
[1735131489717,2.90774666,3482.1,3481.2,3.0]
[1735131489954,2.87185,3482.1,3481.2,3.0]
[1735131490173,0.38878041,3482.0,3481.0,0.7803]
[1735131490848,0.38878041,3482.0,3481.0,3.65302]
[1735131494058,0.38878041,3482.0,3481.1,2.87265]
[1735131494268,0.02601541,3482.0,3481.0,0.7803]
[1735131494432,0.02601541,3482.0,3481.4,2.8724]
[1735131494641,0.03589954,3482.1,3481.2,2.87255]
[1735131494841,0.02609258,3481.9,3481.0,0.7803]
[1735131495039,0.7558,3482.2,3481.4,2.87239]
[1735131495239,0.02609167,3481.8,3481.4,2.87239]
[1735131495453,0.7558,3482.2,3481.4,2.87239]
[1735131495649,0.02609076,3481.7,3481.4,2.87239]
[1735131495871,0.7558,3482.2,3481.5,0.287239]
[1735131496043,0.7558,3482.2,3481.4,2.87239]
[1735131496248,0.0260944,3482.1,3481.4,2.87239]
[1735131500585,0.0260944,3482.1,3481.6,2.87222]
[1735131501081,0.0260944,3482.1,3481.0,0.7803]
[1735131501387,0.0260944,3482.1,3481.7,2.87215]
[1735131501886,0.0260944,3482.1,3481.4,2.87233]
[1735131502052,0.0260944,3482.1,3481.4,3.239253]
[1735131502250,0.0260944,3482.1,3481.5,2.87231]
[1735131504064,0.0619938,3482.1,3481.4,0.366923]
[1735131504391,0.0260944,3482.1,3481.3,2.87246]
[1735131505085,0.0260944,3482.1,3480.8,2.87286]
[1735131505086,0.7734,3482.0,3480.8,0.7969]
[1735131505290,0.7734,3482.0,3481.1,2.8726]
[1735131505491,0.02523553,3481.9,3481.1,2.8726]
[1735131506882,0.02523553,3481.9,3481.2,2.87256]
[1735131507083,0.02523553,3481.9,3481.2,3.159816]
[1735131508581,0.02523553,3481.9,3481.2,2.87256]
[1735131508948,0.02523553,3481.9,3480.8,0.7969]
[1735131508949,0.7734,3481.8,3480.8,0.7969]
[1735131509286,0.02523304,3481.7,3481.0,2.87269]
[1735131509499,0.02523304,3481.7,3480.8,0.7969]
[1735131509807,0.02523304,3481.7,3481.1,2.87265]
[1735131510509,0.02523304,3481.7,3481.1,3.239605]
[1735131511891,0.7734,3481.8,3481.1,3.239605]
[1735131513669,0.7734,3481.8,3481.1,2.87265]
[1735131516731,0.7734,3481.8,3480.7,7.92912939]
[1735131516870,0.7734,3481.8,3481.3,2.87244]
[1735131517074,1.20540315,3482.0,3480.7,7.92912939]
[1735131517075,1.20540315,3482.0,3481.6,2.87221]
[1735131517585,1.20540315,3482.0,3481.4,0.7796]
[1735131517783,1.20540315,3482.0,3481.9,2.87199]
[1735131518184,1.20540315,3482.0,3481.9,6.65159]
[1735131518588,1.20540315,3482.4,3482.3,2.87166]
[1735131519835,1.20540315,3482.4,3482.3,3.65126]
[1735131520288,0.802,3483.0,3482.6,2.87141]
[1735131520463,0.802,3483.0,3482.7,0.287141]
[1735131520754,1.20540315,3483.1,3482.8,2.87122]
[1735131520914,1.20540315,3483.1,3482.9,2.87114]
[1735131521296,3.80008004,3483.6,3482.7,0.287141]
[1735131521297,1.20540315,3483.5,3482.7,0.287141]
[1735131521496,1.20540315,3483.5,3482.7,3.158461]
[1735131521741,1.20540315,3483.5,3482.8,2.87123]
[1735131522432,1.20540315,3483.5,3482.6,2.87139]
[1735131522754,0.802,3483.3,3482.3,3.7796]
[1735131522896,0.802,3483.3,3482.4,2.87157]
[1735131523096,0.02587548,3483.2,3482.4,2.87157]
[1735131523662,0.02587548,3483.2,3482.6,2.87139]
[1735131524549,0.02587548,3483.2,3482.7,2.87133]
[1735131524752,0.02587548,3483.2,3482.8,0.287133]
[1735131525414,0.02587548,3483.2,3482.7,2.87133]
[1735131525618,0.02587548,3483.2,3482.4,0.58698895]
[1735131526659,0.02587548,3483.2,3482.3,2.87163]
[1735131531470,0.02587548,3483.2,3482.3,3.44671703]
[1735131532633,0.7713,3483.1,3482.3,3.44671703]
[1735131532833,0.7971113,3483.1,3482.3,3.44671703]
[1735131534082,0.80718895,3483.0,3481.7,0.7832]
[1735131534534,0.80718895,3483.0,3481.7,1.195607]
[1735131534872,0.80718895,3483.0,3481.7,0.412407]
[1735131535659,2.87119,3482.9,3481.9,2.87198]
[1735131535903,0.8071933,3482.8,3481.9,2.87198]
[1735131536264,0.02580239,3482.7,3481.9,2.87198]
[1735131536464,0.02580239,3482.7,3481.9,3.2004187]
[1735131536873,0.02580239,3482.7,3482.0,2.8719]
[1735131537109,0.02580239,3482.7,3482.1,2.87182]
[1735131537718,0.02580239,3482.7,3482.3,2.87165]
[1735131538015,0.7713,3482.8,3482.4,0.287165]
[1735131538170,0.7713,3482.8,3482.4,2.87156]
[1735131538608,0.02580102,3482.7,3482.4,2.87156]
[1735131538784,0.7713,3482.8,3482.4,2.87156]
[1735131538991,0.02580102,3482.7,3482.4,2.87156]
[1735131539270,0.7713,3482.8,3482.4,2.87156]
[1735131539586,0.7713,3482.8,3482.2,0.7832]
[1735131539806,0.02564029,3482.7,3482.2,3.28414113]
[1735131541591,0.02564029,3482.7,3481.9,0.3284387]
[1735131541799,0.7713,3482.6,3481.9,0.3284387]
[1735131542118,0.79671777,3482.6,3481.9,0.3284387]
[1735131542827,0.79671777,3482.6,3481.9,3.2004287]
[1735131543060,0.79671777,3482.6,3482.0,2.87186]
[1735131543361,0.79671777,3482.6,3482.1,0.32002987]
[1735131543663,0.79671777,3482.6,3482.0,2.87186]
[1735131544035,0.79671777,3482.6,3481.9,0.3284387]
[1735131544231,2.87143,3482.6,3481.6,2.87223]
[1735131544440,0.83262015,3482.5,3481.3,1.18746085]
[1735131544620,3.66786,3482.3,3481.3,1.18746085]
[1735131544825,0.7962,3482.1,3481.3,1.18746085]
[1735131545063,0.7962,3482.1,3481.2,1.18746085]
[1735131545258,0.02526982,3482.0,3481.2,1.18746085]
[1735131545460,0.02526982,3482.0,3481.2,4.18746085]
[1735131545660,0.7962,3482.1,3481.2,4.18746085]
[1735131545822,0.7962,3482.1,3481.2,7.06002085]
[1735131546266,0.7962,3482.1,3481.2,5.87256]
[1735131546567,0.7962,3482.0,3481.2,3.0]
[1735131547096,0.7962,3482.0,3481.2,2.87257]
[1735131547268,0.7962,3482.0,3481.3,3.0]
[1735131550173,0.7962,3482.0,3481.2,2.87257]
[1735131550433,0.4034734,3481.9,3481.2,2.87257]
[1735131552484,0.7962,3482.0,3481.2,2.87257]
[1735131564314,0.7891,3481.8,3480.9,3.0]
[1735131564515,0.7891,3481.6,3480.7,2.87291]
[1735131564712,0.82500633,3481.5,3480.5,5.87312]
[1735131564918,0.82500633,3481.5,3480.6,4.06047085]
[1735131565304,0.7891,3481.5,3480.6,4.06047085]
[1735131565695,0.7891,3481.5,3480.7,2.87298]
[1735131566120,0.7891,3481.5,3480.7,3.43821239]
[1735131566321,0.82500633,3481.5,3480.7,0.56523239]
[1735131568994,0.7891,3481.5,3480.7,0.56523239]
[1735131569199,0.7891,3481.5,3480.7,1.28563963]
[1735131569501,0.82500635,3481.5,3480.7,1.28563963]
[1735131570048,0.7891,3481.3,3480.4,2.87322]
[1735131571646,3.66159,3481.3,3480.5,0.56582496]
[1735131571945,0.7891,3481.2,3480.2,3.63916]
[1735131572753,0.7891,3481.2,3480.3,0.56847142]
[1735131573044,0.7891,3480.9,3480.0,4.06100085]
[1735131573245,0.03591206,3480.8,3480.0,1.18746085]
[1735131573425,0.7891,3480.7,3480.0,1.18746085]
[1735131574043,0.7891,3480.7,3480.0,2.87354]
[1735131574273,0.7891,3480.7,3480.1,0.587354]
[1735131576207,0.7891,3480.7,3480.2,0.57135294]
[1735131580250,0.82501463,3480.7,3480.2,0.57135294]
[1735131580609,0.82501463,3480.7,3479.8,2.8737]
[1735131582656,0.7891,3480.7,3479.8,3.44906153]
[1735131582944,0.7891,3480.7,3480.0,2.87353]
[1735131585855,0.7891,3480.7,3479.9,0.43593906]
[1735131586964,0.7891,3480.7,3479.9,3.30954906]
[1735131588364,0.03591466,3480.6,3479.9,3.30954906]
[1735131589065,0.7891,3480.7,3479.9,3.30954906]
[1735131590244,0.7891,3480.7,3480.0,0.38849106]
[1735131591429,0.7891,3480.7,3480.0,2.87356]
[1735131592673,0.0359147,3480.6,3480.0,2.87356]
[1735131593477,0.0359147,3480.6,3479.6,0.7658]
[1735131593778,0.7926,3480.4,3479.5,2.87393]
[1735131593946,0.8249,3480.2,3479.5,2.87393]
[1735131594150,0.8249,3480.0,3479.4,1.18746085]
[1735131594960,0.8249,3480.0,3479.2,3.0]
[1735131596289,0.8249,3480.0,3479.1,1.18746085]
[1735131596438,0.8249,3480.0,3479.5,2.87397]
[1735131596836,0.8249,3480.0,3479.3,2.87413]
[1735131597037,0.8249,3480.0,3479.4,3.21775559]
[1735131597238,0.8249,3480.6,3479.5,0.7695]
[1735131597440,0.8249,3480.6,3480.0,2.87354]
[1735131597960,0.8249,3480.6,3479.8,3.0]
[1735131598365,0.8249,3480.6,3479.5,1.33347121]
[1735131598579,0.8249,3480.6,3479.9,2.87362]
[1735131599841,0.8249,3480.6,3479.7,2.87379]
[1735131600186,0.8249,3480.6,3479.8,3.0]
[1735131600553,0.8249,3480.6,3479.6,0.16772468]
[1735131600748,0.8249,3480.6,3479.9,2.87361]
[1735131600951,0.03591771,3480.5,3479.6,0.16772468]
[1735131601172,0.8249,3480.6,3479.7,0.37316959]
[1735131601367,0.03591771,3480.5,3479.7,0.37316959]
[1735131601544,0.8249,3480.4,3479.8,2.8737]
[1735131601744,0.8249,3480.2,3479.3,1.18746085]
[1735131602288,0.8249,3480.2,3479.5,2.87397]
[1735131602984,0.8249,3480.2,3479.7,2.87379]
[1735131605390,0.8249,3480.2,3479.4,2.87405]
[1735131605577,0.8249,3480.2,3479.6,2.87389]
[1735131605773,0.8249,3480.2,3479.7,2.87375]
[1735131606277,0.8249,3480.2,3479.5,3.22025996]
[1735131606588,0.8249,3480.2,3479.6,2.87387]
[1735131606787,0.8249,3480.2,3479.7,2.87378]
[1735131606991,0.8249,3480.2,3479.8,0.322008]
[1735131607697,0.82377697,3480.2,3479.8,0.322008]
[1735131611864,0.82377697,3480.2,3479.8,3.195718]
[1735131612601,0.82377697,3480.2,3480.0,2.87354]
[1735131612762,0.82377697,3480.2,3479.8,0.322008]
[1735131612763,1.95670315,3480.8,3480.4,2.87322]
[1735131612963,1.95670315,3480.8,3480.5,0.287322]
[1735131613200,1.95670315,3480.8,3480.2,2.87337]
[1735131613900,1.20540315,3480.7,3480.4,2.87316]
[1735131614095,1.20540315,3480.7,3480.5,2.87311]
[1735131614808,0.7513,3481.2,3480.5,2.87311]
[1735131614984,0.7513,3481.2,3480.6,0.287311]
[1735131615612,1.20540315,3481.3,3480.9,2.87273]
[1735131615831,1.20540315,3481.3,3480.7,0.8225]
[1735131615971,1.20540315,3481.4,3480.7,0.8225]
[1735131616172,1.20540315,3481.4,3480.7,3.8225]
[1735131616386,1.20540315,3481.4,3481.1,2.87261]
[1735131617186,1.20540315,3481.4,3480.8,0.6982831]
[1735131617371,1.20540315,3481.4,3481.3,6.69499]
[1735131617789,1.20540315,3482.0,3481.8,2.87206]
[1735131619070,0.7513,3482.4,3481.8,2.87206]
[1735131619287,0.7513,3482.4,3481.9,2.87196]
[1735131619496,0.7513,3482.4,3481.8,0.287206]
[1735131619697,0.8133,3482.2,3481.2,1.18746085]
[1735131619906,0.8133,3481.9,3481.2,1.18746085]
[1735131620111,0.84920547,3481.8,3481.2,1.18746085]
[1735131620437,0.8133,3481.7,3481.2,1.18746085]
[1735131622027,0.8133,3481.7,3480.7,2.87298]
[1735131622188,0.03590752,3481.6,3480.7,2.87298]
[1735131622389,0.8133,3481.7,3480.7,2.87298]
[1735131622589,1.30238231,3481.7,3480.7,2.87298]
[1735131623585,0.03590753,3481.6,3480.4,0.57254982]
[1735131623788,2.87245,3481.4,3480.4,0.57254982]
[1735131624021,0.8133,3481.2,3480.3,2.87329]
[1735131624215,0.03591014,3481.1,3480.3,2.87329]
[1735131624521,0.03591014,3481.1,3480.3,0.88362]
[1735131624827,0.8133,3481.0,3480.1,4.06092085]
[1735131625586,0.8133,3481.0,3480.3,0.57036013]
[1735131625988,0.8133,3481.0,3480.1,2.87346]
[1735131626206,0.8133,3480.8,3479.7,4.18746085]
[1735131626450,0.8133,3480.6,3479.7,1.18746085]
[1735131626608,0.8133,3480.4,3479.7,1.18746085]
[1735131627814,0.8133,3480.4,3479.7,4.06126085]
[1735131628022,0.8133,3480.4,3479.8,0.583671]
[1735131628217,0.8133,3480.4,3479.3,4.3371337]
[1735131628393,0.8133,3480.4,3479.7,2.87379]
[1735131629400,0.8133,3480.4,3479.4,2.48238488]
[1735131629896,0.8133,3480.3,3479.4,2.48238488]
[1735131630296,0.84922212,3480.2,3479.4,2.48238488]
[1735131630539,0.8133,3480.1,3479.4,2.48238488]
[1735131630735,0.8133,3480.1,3479.1,4.06175085]
[1735131631622,0.8133,3480.1,3479.1,1.18746085]
[1735131631939,0.8133,3480.1,3479.4,2.87403]
[1735131632136,0.8133,3480.1,3479.4,3.28017909]
[1735131633454,0.8133,3480.1,3479.4,0.40614909]
[1735131638070,0.8133,3480.1,3479.1,2.87428]
[1735131642507,0.7773,3480.0,3479.1,2.87428]
[1735131646267,0.7773,3479.8,3478.4,5.01006085]
[1735131646463,0.7773,3479.4,3478.4,2.01006085]
[1735131646822,0.7773,3479.2,3478.4,1.18746085]
[1735131647021,0.7773,3479.1,3478.4,1.18746085]
[1735131647356,3.65175,3479.0,3478.4,1.18746085]
[1735131647682,3.65175,3479.0,3477.9,3.83839382]
[1735131647857,3.65175,3479.0,3478.0,0.50258547]
[1735131648701,3.64817326,3479.0,3478.0,0.50258547]
[1735131650900,2.87087326,3479.0,3478.0,0.50258547]
[1735131651197,2.87447,3478.9,3477.9,3.46129247]
[1735131651498,0.7914,3478.8,3477.9,3.46129247]
[1735131652382,0.7914,3478.8,3477.8,2.87534]
[1735131654702,0.7914,3478.8,3477.9,2.87527]
[1735131655164,0.03593542,3478.7,3477.9,2.87527]
[1735131655499,0.7914,3478.6,3478.0,0.287527]
[1735131656294,0.7914,3478.6,3477.7,0.56850043]
[1735131656504,0.7914,3478.6,3477.7,3.44395043]
[1735131656802,0.82733692,3478.5,3477.5,3.14492563]
[1735131657103,0.82733692,3478.5,3477.5,3.0]
[1735131657300,0.7914,3478.4,3477.5,3.0]
[1735131657466,0.7914,3478.2,3477.6,0.587563]
[1735131657799,0.7914,3478.2,3477.0,0.7752]
[1735131657999,0.7914,3478.0,3477.0,3.65117]
[1735131658882,0.7914,3478.0,3477.1,3.0]
[1735131660071,0.7914,3478.0,3477.1,2.87594]
[1735131660299,0.7914,3478.0,3477.2,0.35922374]
[1735131660884,0.7914,3478.0,3477.2,3.23508374]
[1735131661813,0.7914,3478.0,3477.3,2.87575]
[1735131663430,0.7914,3478.0,3477.4,2.87563]
[1735131663903,0.7914,3478.0,3477.3,0.7752]
[1735131664106,0.7914,3478.0,3477.5,2.8756]
[1735131664311,0.7914,3478.0,3477.6,0.36508]
[1735131664508,3.0,3479.2,3477.6,0.36508]
[1735131664509,2.87411,3479.4,3477.6,0.36508]
[1735131664809,0.7635,3479.1,3478.1,2.87506]
[1735131665010,0.7635,3479.1,3477.2,0.35922374]
[1735131665011,0.7635,3479.1,3477.8,0.57349197]
[1735131665176,0.7635,3479.1,3478.5,2.87478]
[1735131665688,0.56502608,3479.5,3478.8,2.87453]
[1735131665689,0.7635,3479.5,3478.8,2.87453]
[1735131666039,0.7635,3479.5,3478.9,0.287453]
[1735131666380,0.7635,3479.5,3478.7,2.87463]
[1735131666724,0.7635,3479.5,3478.9,2.87445]
[1735131668336,0.7635,3479.5,3478.6,2.87465]
[1735131668627,0.7635,3479.5,3478.1,2.87507]
[1735131668628,0.7635,3479.3,3478.4,2.87487]
[1735131669630,0.7635,3479.1,3477.8,0.7905]
[1735131669800,0.7635,3479.1,3478.1,2.87511]
[1735131670134,0.7635,3479.1,3478.0,0.57861758]
[1735131670421,0.7635,3479.1,3478.4,2.87481]
[1735131673306,0.7635,3479.1,3478.3,3.0]
[1735131673502,0.03593169,3479.0,3478.0,0.57861758]
[1735131673712,0.7635,3479.1,3478.2,2.87503]
[1735131674653,0.8007,3478.9,3478.2,2.87503]
[1735131675361,0.8007,3478.9,3478.0,0.57861758]
[1735131675560,0.8007,3478.9,3478.0,3.57861758]
[1735131675783,0.8007,3478.9,3478.1,0.71204366]
[1735131676684,0.8007,3478.9,3478.1,3.58715366]
[1735131676962,0.8007,3478.8,3477.9,2.87528]
[1735131678463,0.03593726,3478.7,3477.9,2.87528]
[1735131678635,0.7644,3478.6,3477.8,3.0]
[1735131678822,0.7644,3478.6,3477.9,3.0]
[1735131679023,0.7644,3478.6,3477.9,0.6]
[1735131679226,0.7644,3478.6,3477.8,2.87535]
[1735131679426,0.7644,3478.4,3477.8,2.87535]
[1735131679830,0.7644,3478.4,3477.4,0.1409089]
[1735131680026,0.7644,3478.4,3478.0,2.87517]
[1735131680322,0.7644,3478.7,3478.3,2.87496]
[1735131681231,0.7644,3478.7,3478.1,2.8751]
[1735131682485,0.7644,3478.7,3477.9,2.87528]
[1735131683024,0.7644,3478.7,3477.5,3.56676291]
[1735131683327,0.7644,3478.7,3478.3,2.87496]
[1735131684864,0.7644,3478.7,3477.8,3.0]
[1735131685032,0.7644,3478.7,3478.4,2.87486]
[1735131685751,4.07939315,3479.5,3478.6,2.8747]
[1735131685752,0.7644,3479.4,3478.6,2.8747]
[1735131686438,0.7644,3479.4,3478.7,2.87462]
[1735131686840,0.7644,3479.4,3478.8,2.87454]
[1735131687048,0.7644,3479.4,3478.8,3.161994]
[1735131687252,0.7644,3479.4,3478.9,2.87446]
[1735131689468,0.7644,3479.4,3478.3,3.90461867]
[1735131689677,0.7644,3479.2,3478.2,1.7689767]
[1735131689886,0.7644,3479.1,3478.2,1.7689767]
[1735131690199,0.7644,3479.1,3478.2,1.18746085]
[1735131690200,0.7644,3479.0,3478.2,1.18746085]
[1735131691153,0.7644,3479.0,3477.9,4.12826501]
[1735131691901,0.7644,3478.8,3477.9,4.12826501]
[1735131692744,0.7644,3478.8,3477.9,3.539034]
[1735131693245,0.7644,3478.8,3477.6,3.7619]
[1735131693484,0.7644,3478.7,3477.7,2.87545]
[1735131693657,0.8114,3478.5,3477.7,2.87545]
[1735131695787,0.8002,3478.3,3477.7,2.87545]
[1735131696544,0.8002,3478.3,3477.3,4.18746085]
[1735131696745,0.8002,3478.3,3477.5,3.0]
[1735131696946,0.8002,3478.3,3477.4,4.4649682]
[1735131697394,0.8002,3478.3,3478.0,2.87513]
[1735131697592,0.8002,3478.3,3477.9,3.0]
[1735131699355,0.8002,3478.3,3477.6,0.5667578]
[1735131699555,0.8002,3478.3,3478.0,2.87521]
[1735131700262,0.8002,3478.3,3477.8,2.87535]
[1735131704109,0.8002,3478.3,3477.4,2.65242905]
[1735131704110,0.8002,3478.3,3477.4,4.70975905]
[1735131704319,0.8002,3478.3,3477.6,2.87554]
[1735131704520,0.8002,3478.3,3478.1,2.87512]
[1735131704813,0.8002,3478.3,3477.8,2.87529]
[1735131705027,0.8002,3478.3,3477.8,3.162819]
[1735131706019,0.8002,3478.3,3477.8,0.287529]
[1735131706159,0.8002,3478.3,3478.0,2.87514]
[1735131707398,0.8002,3478.3,3477.8,3.162869]
[1735131708413,0.8002,3478.3,3477.5,2.00576085]
[1735131708632,0.8002,3478.3,3477.6,2.87553]
[1735131709133,0.8002,3478.3,3477.6,2.49194976]
[1735131709297,0.8002,3478.3,3477.7,2.87543]
[1735131709710,0.8002,3478.3,3477.6,2.49194976]
[1735131710495,0.8002,3478.3,3477.5,2.87561]
[1735131710696,0.8002,3478.3,3477.5,4.01465462]
[1735131710992,0.83613877,3478.3,3477.5,1.13904462]
[1735131711193,0.8002,3478.3,3478.2,2.87505]
[1735131711395,0.8002,3478.3,3477.7,2.87546]
[1735131711396,0.8002,3478.3,3478.0,2.8752]
[1735131711631,0.8002,3478.3,3478.1,0.58752]
[1735131711832,0.8002,3478.3,3478.0,2.8752]
[1735131711994,0.8002,3478.3,3478.1,2.8751]
[1735131712200,0.8002,3478.3,3478.2,2.87505]
[1735131712739,2.01440315,3478.6,3478.2,2.87505]
[1735131713166,0.809,3478.6,3478.2,2.87505]
[1735131713351,0.809,3478.6,3478.3,0.287505]
[1735131713550,0.809,3478.6,3478.3,3.162385]
[1735131713723,2.01440315,3479.0,3478.3,0.287505]
[1735131713922,2.01440315,3479.0,3478.2,0.761]
[1735131714164,1.20540315,3479.1,3478.3,2.87496]
[1735131714327,1.20540315,3479.1,3478.7,2.87456]
[1735131716095,0.809,3479.3,3478.7,2.87456]
[1735131716258,0.809,3479.3,3478.8,0.287456]
[1735131717268,0.809,3479.3,3478.9,2.87446]
[1735131717998,0.809,3479.3,3478.8,0.761]
[1735131719297,0.809,3479.3,3478.5,4.06224085]
[1735131719796,0.809,3479.3,3478.5,2.87478]
[1735131720361,0.809,3479.3,3478.4,1.94846085]
[1735131720362,0.809,3479.3,3478.4,1.18746085]
[1735131720554,0.809,3479.3,3478.5,2.87475]
[1735131720759,0.809,3479.6,3478.9,2.87447]
[1735131720982,2.01440315,3479.6,3479.0,2.8743]
[1735131721204,2.01440315,3479.6,3479.1,0.761]
[1735131721522,2.01440315,3479.6,3479.1,3.99879]
[1735131722518,0.809,3479.6,3479.1,3.99879]
[1735131723322,0.809,3479.6,3479.1,3.23779]
[1735131723718,0.809,3479.6,3479.1,0.36353]
[1735131723878,1.20540315,3480.1,3479.5,0.7886]
[1735131724077,1.20540315,3480.1,3480.0,2.87356]
[1735131724333,1.20540315,3480.1,3480.0,3.66216]
[1735131725130,1.77611185,3480.3,3480.0,3.66216]
[1735131725131,1.270345,3480.3,3480.2,2.87339]
[1735131725342,1.270345,3480.3,3480.2,6.66199]
[1735131725531,0.93156913,3480.5,3480.4,2.87323]
[1735131725719,2.99808004,3480.6,3480.5,5.87315]
[1735131725720,0.12502004,3480.6,3480.5,5.87315]
[1735131725920,0.12502004,3480.6,3480.5,6.66175]
[1735131726250,3.59769605,3480.9,3480.8,2.8729]
[1735131726749,3.59769605,3480.9,3480.6,0.7886]
[1735131726750,1.20315773,3481.6,3480.9,2.87281]
[1735131727513,1.20315773,3481.6,3480.7,0.666175]
[1735131727915,1.20315773,3481.6,3480.8,0.7886]
[1735131728249,1.20315773,3481.6,3481.5,2.87232]
[1735131728476,0.8199,3482.4,3481.5,1.075832]
[1735131728758,0.8199,3482.4,3481.7,2.87214]
[1735131728917,0.8199,3482.4,3481.5,3.948142]
[1735131729232,0.8199,3482.4,3481.6,2.87224]
[1735131729645,0.8199,3482.4,3481.5,1.075832]
[1735131729646,0.8199,3482.4,3481.8,2.87207]
[1735131730530,0.8199,3482.4,3481.9,2.87194]
[1735131730725,0.8199,3482.4,3481.7,2.8721]
[1735131732156,0.8199,3482.4,3481.5,0.7886]
[1735131732157,0.8199,3482.4,3481.5,2.87228]
[1735131732650,0.8199,3482.4,3481.2,0.92955284]
[1735131732850,0.8199,3482.4,3481.4,3.0]
[1735131733051,0.8199,3482.4,3481.9,2.87192]
[1735131733251,0.8199,3483.2,3481.7,0.7886]
[1735131733630,0.8199,3483.2,3482.0,2.87185]
[1735131733843,0.369075,3483.1,3482.0,2.87185]
[1735131734245,0.8199,3483.2,3482.4,2.87156]
[1735131735341,0.8199,3483.2,3482.2,2.87173]
[1735131735518,0.8199,3483.0,3481.7,1.3619235]
[1735131735722,0.8199,3483.0,3481.7,4.3619235]
[1735131736156,0.8199,3483.0,3482.0,2.87191]
[1735131736337,1.188986,3483.0,3482.1,2.8718]
[1735131737251,0.8199,3483.0,3482.3,2.87164]